fUST/lending_fUST_20250203
["ID","MTS","AMOUNT","RATE_DAILY","PERIOD"]
[351370257,1738546247849,-500.0,0.00017123,2]
[351370258,1738546247859,-691.933465,0.00017123,2]
[351370259,1738546247868,-691.933465,0.00017123,2]
[351370260,1738546247880,-1895.57,0.00017123,2]
[351370261,1738546247889,-5326.84,0.00017123,2]
[351370262,1738546247899,-500.0,0.00017123,2]
[351370263,1738546247908,-523.69,0.00017123,2]
[351370264,1738546247917,-500.99,0.00017123,2]
[351370265,1738546247927,-755.62,0.00017123,2]
[351370266,1738546247936,-1381.52,0.00017123,2]
[351370267,1738546247945,-151.0,0.00017123,2]
[351370268,1738546247959,-151.0,0.00017123,2]
[351370269,1738546247968,-500.0,0.00017123,2]
[351370270,1738546247978,-677.66,0.00017123,2]
[351370271,1738546247987,-500.0,0.00017123,2]
[351370272,1738546247996,-534.21,0.00017123,2]
[351370273,1738546248005,-5776.74,0.00017123,2]
[351370274,1738546248014,-272.48,0.00017123,2]
[351370275,1738546248024,-790.65,0.00017123,2]
[351370276,1738546248033,-500.0,0.00017123,2]
[351370277,1738546248043,-500.0,0.00017123,2]
[351370278,1738546248052,-701.64,0.00017123,2]
[351370279,1738546248062,-604.68,0.00017123,2]
[351370280,1738546248147,-1522.33,0.00017123,2]
[351370281,1738546248157,-1604.87,0.00017123,2]
[351370282,1738546248167,-663.04,0.00017123,2]
[351370283,1738546248177,-2281.67,0.00017123,2]
[351370284,1738546248186,-3649.73,0.00017123,2]
[351370285,1738546248196,-616.74,0.00017123,2]
[351370286,1738546248209,-500.0,0.00017123,2]
[351370287,1738546248218,-500.0,0.00017123,2]
[351370288,1738546248228,-500.0,0.00017123,2]
[351370289,1738546248237,-500.0,0.00017123,2]
[351370290,1738546248247,-500.0,0.00017123,2]
[351370291,1738546248256,-240.78990287,0.00017141,2]
[351370292,1738546248266,-500.0,0.00017144,2]
[351370293,1738546248276,-161.06384918,0.00017144,2]
[351370294,1738546248285,-500.0,0.00017144,2]
[351370295,1738546248295,-260.13243254,0.00017157,2]
[351370296,1738546248306,-500.0,0.00017157,2]
[351370297,1738546248316,-502.77196312,0.00017157,2]
[351370298,1738546248325,-251.42436142,0.00017157,2]
[351370299,1738546248335,-501.40473974,0.00017157,2]
[351370300,1738546248345,-501.6552537,0.00017161,2]
[351370301,1738546248355,-500.0,0.00017174,2]
[351370302,1738546248365,-500.0,0.00017174,2]
[351370303,1738546248375,-240.78990287,0.00017176,2]
[351370304,1738546248384,-2000.0,0.000172,2]
[351370305,1738546248394,-11734.86,0.000172,2]
[351370306,1738546248403,-10000.0,0.000172,2]
[351370307,1738546248413,-191.980044,0.000172,2]
[351370308,1738546248423,-151.0,0.000172,2]
[351370309,1738546248434,-151.0,0.000172,2]
[351370310,1738546248444,-151.0,0.000172,2]
[351370311,1738546248453,-151.0,0.0001721,2]
[351370312,1738546248466,-240.78990287,0.0001721,2]
[351370313,1738546248475,-500.0,0.00017238,2]
[351370314,1738546248485,-240.78990287,0.00017245,2]
[351370315,1738546248494,-151.0,0.0001726,2]
[351370316,1738546248503,-151.0,0.0001726,2]
[351370317,1738546248513,-151.0,0.0001726,2]
[351370318,1738546248523,-500.0,0.0001726,2]
[351370319,1738546248533,-151.0,0.0001726,2]
[351370320,1738546248542,-500.0,0.0001726,2]
[351370321,1738546248552,-151.0,0.0001726,2]
[351370322,1738546248562,-151.0,0.0001726,2]
[351370323,1738546248572,-151.0,0.0001726,2]
[351370324,1738546248581,-151.0,0.0001726,2]
[351370325,1738546248591,-151.0,0.0001726,2]
[351370326,1738546248601,-151.0,0.0001726,2]
[351370327,1738546248610,-500.0,0.0001726,2]
[351370328,1738546248620,-167.524511,0.0001726,2]
[351370329,1738546248630,-479.348248,0.0001726,2]
[351370330,1738546248639,-167.524511,0.0001726,2]
[351370331,1738546248648,-479.348248,0.0001726,2]
[351370332,1738546248657,-524.41298238,0.0001726,2]
[351370333,1738546248666,-500.0,0.0001726,2]
[351370334,1738546248676,-500.0,0.0001726,2]
[351370335,1738546248685,-500.0,0.0001726,2]
[351370336,1738546248695,-557.42,0.0001726,2]
[351370337,1738546248704,-500.0,0.0001726,2]
[351370338,1738546248717,-500.0,0.0001726,2]
[351370339,1738546248726,-500.0,0.0001726,2]
[351370340,1738546248737,-500.0,0.0001726,2]
[351370341,1738546248748,-500.0,0.0001726,2]
[351370342,1738546248758,-1248.31,0.0001726,2]
[351370343,1738546248769,-6128.74,0.0001726,2]
[351370344,1738546248779,-151.0,0.0001726,2]
[351370345,1738546248789,-612.73,0.0001726,2]
[351370346,1738546248799,-1450.83,0.0001726,2]
[351370347,1738546248808,-500.0,0.0001726,2]
[351370348,1738546248819,-779.69,0.0001726,2]
[351370349,1738546248828,-500.0,0.0001726,2]
[351370350,1738546248841,-1458.9,0.0001726,2]
[351370351,1738546248859,-500.0,0.0001726,2]
[351370352,1738546248870,-2441.06,0.0001726,2]
[351370353,1738546248881,-500.0,0.0001726,2]
[351370354,1738546248891,-691.933465,0.0001726,2]
[351370355,1738546248901,-691.933465,0.0001726,2]
[351370356,1738546248911,-1895.57,0.0001726,2]
[351370357,1738546248921,-5326.84,0.0001726,2]
[351370358,1738546248931,-565.26,0.0001726,2]
[351370359,1738546248942,-523.69,0.0001726,2]
[351370360,1738546248952,-500.99,0.0001726,2]
[351370361,1738546248967,-755.62,0.0001726,2]
[351370362,1738546248977,-1381.52,0.0001726,2]
[351370363,1738546248987,-151.0,0.0001726,2]
[351370364,1738546248997,-151.0,0.0001726,2]
[351370365,1738546249007,-500.0,0.0001726,2]
[351370366,1738546249017,-677.66,0.0001726,2]
[351370368,1738546249027,-161.68274091,0.0001726,2]
[351370369,1738546249036,-534.21,0.0001726,2]
[351370370,1738546249045,-5776.74,0.0001726,2]
[351370371,1738546249055,-790.65,0.0001726,2]
[351370373,1738546249064,-151.0,0.0001726,2]
[351370374,1738546249073,-500.0,0.0001726,2]
[351370375,1738546249083,-500.0,0.0001726,2]
[351370376,1738546249093,-701.64,0.0001726,2]
[351370377,1738546249102,-604.68,0.0001726,2]
[351370378,1738546249112,-294.887769,0.0001726,2]
[351370379,1738546249121,-294.887769,0.0001726,2]
[351370380,1738546249131,-1522.33,0.0001726,2]
[351370381,1738546249141,-1604.87,0.0001726,2]
[351370383,1738546249150,-663.04,0.0001726,2]
[351370384,1738546249160,-2281.67,0.0001726,2]
[351370385,1738546249170,-3649.73,0.0001726,2]
[351370386,1738546249180,-616.74,0.0001726,2]
[351370387,1738546249190,-500.0,0.0001726,2]
[351370388,1738546249200,-507.32248357,0.0001726,2]
[351370389,1738546249213,-289.32218444,0.0001726,2]
[351370390,1738546249223,-500.0,0.0001726,2]
[351370391,1738546249233,-500.0,0.0001726,2]
[351370392,1738546249243,-151.0,0.00017266,2]
[351370393,1738546249254,-321.497512,0.00017266,2]
[351370394,1738546249264,-321.497512,0.00017266,2]
[351370395,1738546249274,-2098.802,0.00017266,2]
[351370396,1738546249284,-2300.0,0.00017266,2]
[351370397,1738546249295,-396.0,0.00017266,2]
[351370398,1738546249305,-150.467,0.00017266,2]
[351370399,1738546249315,-240.78990287,0.00017279,2]
[351370400,1738546249325,-151.0,0.000173,2]
[351370401,1738546249335,-151.0,0.000173,2]
[351370402,1738546249344,-151.0,0.000173,2]
[351370403,1738546249355,-240.78990287,0.00017314,2]
[351370404,1738546249364,-173.29454244,0.00017315,2]
[351370405,1738546249375,-473.19,0.00017331,2]
[351370406,1738546249385,-2000.0,0.0001734,2]
[351370407,1738546249394,-240.78990287,0.00017348,2]
[351370408,1738546249404,-240.78990287,0.00017383,2]
[351370409,1738546249414,-151.0,0.00017397,2]
[351370410,1738546249424,-163.355957,0.00017397,2]
[351370411,1738546249433,-151.0,0.00017397,2]
[351370412,1738546249443,-151.0,0.00017397,2]
[351370413,1738546249452,-151.918599,0.00017397,2]
[351370414,1738546249466,-151.0,0.00017397,2]
[351370415,1738546249476,-151.0,0.00017397,2]
[351370416,1738546249485,-417.50747535,0.00017397,2]
[351370417,1738546249494,-500.0,0.00017397,2]
[351370418,1738546249504,-500.0,0.00017397,2]
[351370419,1738546249514,-500.0,0.00017397,2]
[351370420,1738546249524,-500.0,0.00017397,2]
[351370421,1738546249534,-151.0,0.00017397,2]
[351370422,1738546249543,-557.42,0.00017397,2]
[351370423,1738546249552,-500.0,0.00017397,2]
[351370424,1738546249562,-151.0,0.00017397,2]
[351370425,1738546249571,-500.0,0.00017397,2]
[351370426,1738546249581,-500.0,0.00017397,2]
[351370427,1738546249590,-500.0,0.00017397,2]
[351370428,1738546249599,-1248.31,0.00017397,2]
[351370429,1738546249609,-6128.74,0.00017397,2]
[351370430,1738546249619,-612.73,0.00017397,2]
[351370431,1738546249628,-1450.83,0.00017397,2]
[351370432,1738546249638,-500.0,0.00017397,2]
[351370433,1738546249647,-779.69,0.00017397,2]
[351370434,1738546249656,-500.0,0.00017397,2]
[351370435,1738546249666,-1458.9,0.00017397,2]
[351370436,1738546249675,-500.0,0.00017397,2]
[351370437,1738546249685,-2441.06,0.00017397,2]
[351370438,1738546249695,-500.0,0.00017397,2]
[351370439,1738546249704,-1895.57,0.00017397,2]
[351370440,1738546249718,-5326.84,0.00017397,2]
[351370441,1738546249727,-523.69,0.00017397,2]
[351370442,1738546249737,-500.99,0.00017397,2]
[351370443,1738546249747,-755.62,0.00017397,2]
[351370444,1738546249756,-1381.52,0.00017397,2]
[351370445,1738546249765,-500.0,0.00017397,2]
[351370446,1738546249775,-677.66,0.00017397,2]
[351370447,1738546249786,-534.21,0.00017397,2]
[351370448,1738546249796,-5776.74,0.00017397,2]
[351370449,1738546249878,-151.0,0.00017397,2]
[351370450,1738546249890,-790.65,0.00017397,2]
[351370451,1738546249899,-500.0,0.00017397,2]
[351370452,1738546249909,-500.0,0.00017397,2]
[351370453,1738546249920,-701.64,0.00017397,2]
[351370454,1738546249930,-604.68,0.00017397,2]
[351370455,1738546249939,-1522.33,0.00017397,2]
[351370456,1738546249949,-1604.87,0.00017397,2]
[351370457,1738546249962,-663.04,0.00017397,2]
[351370458,1738546249971,-2281.67,0.00017397,2]
[351370459,1738546249981,-3649.73,0.00017397,2]
[351370460,1738546249991,-616.74,0.00017397,2]
[351370462,1738546250000,-500.0,0.00017397,2]
[351370463,1738546250009,-500.0,0.00017397,2]
[351370464,1738546250018,-500.0,0.00017397,2]
[351370465,1738546250027,-151.0,0.000174,2]
[351370466,1738546250036,-151.0,0.000174,2]
[351370467,1738546250046,-151.0,0.000174,2]
[351370468,1738546250055,-240.78990287,0.00017417,2]
[351370469,1738546250064,-401.0,0.0001743,2]
[351370470,1738546250073,-240.78990287,0.00017452,2]
[351370471,1738546250083,-151.0,0.00017468,2]
[351370473,1738546250092,-335.442684,0.00017468,2]
[351370474,1738546250101,-240.78990287,0.00017486,2]
[351370475,1738546250110,-4000.0,0.000175,2]
[351370476,1738546250119,-151.0,0.000175,2]
[351370477,1738546250128,-10467.28,0.000175,2]
[351370478,1738546250138,-151.0,0.000175,2]
[351370479,1738546250147,-151.0,0.000175,2]
[351370480,1738546250156,-259.68538367,0.000175,2]
[351370481,1738546250165,-151.0,0.000175,2]
[351370482,1738546250175,-151.0,0.000175,2]
[351370483,1738546250184,-151.0,0.000175,2]
[351370484,1738546250194,-151.0,0.000175,2]
[351370485,1738546250203,-151.0,0.000175,2]
[351370486,1738546250216,-288.472846,0.000175,2]
[351370487,1738546250225,-167.524511,0.000175,2]
[351370488,1738546250234,-479.348248,0.000175,2]
[351370489,1738546250243,-167.524511,0.000175,2]
[351370490,1738546250253,-479.348248,0.000175,2]
[351370491,1738546250262,-151.0,0.000175,2]
[351370492,1738546250271,-294.887769,0.000175,2]
[351370493,1738546250281,-294.887769,0.000175,2]
[351370494,1738546250290,-240.78990287,0.00017521,2]
[351370495,1738546250299,-500.0,0.00017534,2]
[351370496,1738546250308,-500.0,0.00017534,2]
[351370497,1738546250317,-178.00147383,0.00017534,2]
[351370498,1738546250327,-500.0,0.00017534,2]
[351370499,1738546250336,-557.42,0.00017534,2]
[351370500,1738546250345,-500.0,0.00017534,2]
[351370501,1738546250354,-500.0,0.00017534,2]
[351370502,1738546250364,-321.497512,0.00017534,2]
[351370503,1738546250373,-321.497512,0.00017534,2]
[351370504,1738546250383,-500.0,0.00017534,2]
[351370505,1738546250392,-1248.31,0.00017534,2]
[351370506,1738546250402,-6128.74,0.00017534,2]
[351370507,1738546250411,-151.0,0.00017534,2]
[351370508,1738546250420,-612.73,0.00017534,2]
[351370509,1738546250435,-1450.83,0.00017534,2]
[351370510,1738546250444,-500.0,0.00017534,2]
[351370511,1738546250454,-779.69,0.00017534,2]
[351370512,1738546250468,-619.55,0.00017534,2]
[351370513,1738546250478,-1458.9,0.00017534,2]
[351370514,1738546250487,-500.0,0.00017534,2]
[351370515,1738546250497,-2441.06,0.00017534,2]
[351370516,1738546250506,-500.0,0.00017534,2]
[351370517,1738546250515,-691.933465,0.00017534,2]
[351370518,1738546250525,-691.933465,0.00017534,2]
[351370520,1738546250535,-1895.57,0.00017534,2]
[351370521,1738546250544,-5326.84,0.00017534,2]
[351370522,1738546250553,-523.69,0.00017534,2]
[351370523,1738546250563,-500.99,0.00017534,2]
[351370524,1738546250575,-755.62,0.00017534,2]
[351370525,1738546250585,-1381.52,0.00017534,2]
[351370526,1738546250595,-151.0,0.00017534,2]
[351370527,1738546250604,-151.0,0.00017534,2]
[351370528,1738546250614,-500.0,0.00017534,2]
[351370529,1738546250623,-677.66,0.00017534,2]
[351370530,1738546250633,-534.21,0.00017534,2]
[351370531,1738546250642,-5776.74,0.00017534,2]
[351370532,1738546250652,-790.65,0.00017534,2]
[351370534,1738546250661,-500.0,0.00017534,2]
[351370535,1738546250671,-500.0,0.00017534,2]
[351370536,1738546250680,-701.64,0.00017534,2]
[351370537,1738546250690,-604.68,0.00017534,2]
[351370538,1738546250700,-1522.33,0.00017534,2]
[351370539,1738546250713,-1604.87,0.00017534,2]
[351370540,1738546250722,-663.04,0.00017534,2]
[351370541,1738546250731,-2281.67,0.00017534,2]
[351370542,1738546250740,-3649.73,0.00017534,2]
[351370543,1738546250750,-616.74,0.00017534,2]
[351370544,1738546250759,-568.57515186,0.00017534,2]
[351370545,1738546250769,-500.0,0.00017534,2]
[351370546,1738546250778,-500.0,0.00017534,2]
[351370547,1738546250788,-240.78990287,0.00017555,2]
[351370548,1738546250797,-160.0,0.00017569,3]
[351370549,1738546250806,-240.78990287,0.0001759,2]
[351370551,1738546250816,-1000.0,0.000176,2]
[351370552,1738546250825,-523.8309006,0.00017619,2]
[351370553,1738546250835,-240.78990287,0.00017624,2]
[351370554,1738546250846,-240.78990287,0.00017659,2]
[351370555,1738546250857,-6454.64291804,0.0001766,2]
[351370556,1738546250868,-151.0,0.0001766,2]
[351370557,1738546250877,-151.0,0.0001766,2]
[351370558,1738546250886,-152.155522,0.00017671,2]
[351370559,1738546250896,-151.0,0.00017671,2]
[351370560,1738546250906,-335.442684,0.00017671,2]
[351370561,1738546250915,-500.0,0.00017671,2]
[351370562,1738546250924,-500.0,0.00017671,2]
[351370563,1738546250934,-151.0,0.00017671,2]
[351370564,1738546250943,-557.42,0.00017671,2]
[351370565,1738546250953,-500.0,0.00017671,2]
[351370566,1738546250969,-500.0,0.00017671,2]
[351370567,1738546250979,-500.0,0.00017671,2]
[351370568,1738546250988,-1248.31,0.00017671,2]
[351370569,1738546250997,-6128.74,0.00017671,2]
[351370570,1738546251007,-612.73,0.00017671,2]
[351370571,1738546251016,-1450.83,0.00017671,2]
[351370572,1738546251025,-500.0,0.00017671,2]
[351370574,1738546251035,-779.69,0.00017671,2]
[351370575,1738546251045,-1458.9,0.00017671,2]
[351370576,1738546251054,-500.0,0.00017671,2]
[351370577,1738546251064,-2441.06,0.00017671,2]
[351370578,1738546251073,-500.0,0.00017671,2]
[351370579,1738546251082,-1895.57,0.00017671,2]
[351370580,1738546251092,-5326.84,0.00017671,2]
[351370582,1738546251102,-523.69,0.00017671,2]
[351370583,1738546251111,-500.99,0.00017671,2]
[351370584,1738546251120,-755.62,0.00017671,2]
[351370585,1738546251130,-1381.52,0.00017671,2]
[351370586,1738546251139,-500.0,0.00017671,2]
[351370587,1738546251149,-677.66,0.00017671,2]
[351370588,1738546251159,-534.21,0.00017671,2]
[351370589,1738546251168,-5776.74,0.00017671,2]
[351370590,1738546251178,-151.0,0.00017671,2]
[351370591,1738546251187,-790.65,0.00017671,2]
[351370592,1738546251197,-500.0,0.00017671,2]
[351370593,1738546251211,-500.0,0.00017671,2]
[351370594,1738546251222,-701.64,0.00017671,2]
[351370595,1738546251231,-604.68,0.00017671,2]
[351370596,1738546251241,-1522.33,0.00017671,2]
[351370597,1738546251251,-1604.87,0.00017671,2]
[351370598,1738546251261,-663.04,0.00017671,2]
[351370599,1738546251271,-2281.67,0.00017671,2]
[351370600,1738546251281,-3649.73,0.00017671,2]
[351370601,1738546251291,-616.74,0.00017671,2]
[351370602,1738546251300,-500.0,0.00017671,2]
[351370603,1738546251309,-500.0,0.00017671,2]
[351370604,1738546251319,-1000.0,0.00017692,2]
[351370605,1738546251329,-240.78990287,0.00017693,2]
[351370606,1738546251339,-2000.0,0.000177,2]
[351370607,1738546251348,-2000.0,0.000177,2]
[351370608,1738546251429,-151.0,0.000177,2]
[351370609,1738546251439,-151.0,0.000177,2]
[351370610,1738546251449,-151.0,0.000177,2]
[351370611,1738546251461,-294.071517,0.000177,2]
[351370612,1738546251471,-1255.12872756,0.000177,2]
[351370613,1738546251481,-294.887769,0.000177,2]
[351370614,1738546251491,-294.887769,0.000177,2]
[351370615,1738546251500,-160.0,0.0001771,4]
[351370616,1738546251510,-500.0,0.00017722,2]
[351370617,1738546251520,-235.976983,0.00017722,2]
[351370618,1738546251529,-248.887428,0.00017722,2]
[351370619,1738546251539,-151.0,0.00017722,2]
[351370620,1738546251549,-151.0,0.00017722,2]
[351370621,1738546251559,-151.0,0.00017722,2]
[351370622,1738546251568,-167.524511,0.00017722,2]
[351370623,1738546251578,-479.348248,0.00017722,2]
[351370624,1738546251587,-167.524511,0.00017722,2]
[351370625,1738546251596,-479.348248,0.00017722,2]
[351370626,1738546251606,-1255.12872751,0.00017722,2]
[351370627,1738546251615,-1200.0,0.00017722,2]
[351370628,1738546251625,-240.78990287,0.00017728,2]
[351370629,1738546251635,-478.08303725,0.00017735,2]
[351370630,1738546251644,-1255.12872751,0.00017744,2]
[351370631,1738546251654,-153.43817452,0.00017753,2]
[351370632,1738546251663,-240.78990287,0.00017762,2]
[351370633,1738546251673,-1255.12872751,0.00017767,2]
[351370634,1738546251686,-500.0,0.00017781,2]
[351370635,1738546251696,-1255.12872751,0.00017789,2]
[351370636,1738546251705,-1679.76845551,0.00017796,5]
[351370637,1738546251720,-1280.85595763,0.00017796,2]
[351370638,1738546251730,-151.0,0.00017796,2]
[351370639,1738546251740,-153.089751,0.00017796,2]
[351370640,1738546251750,-240.78990287,0.00017797,2]
[351370641,1738546251759,-5456.36016967,0.00017799,2]
[351370642,1738546251769,-151.0,0.00017799,2]
[351370643,1738546251779,-151.0,0.00017799,2]
[351370644,1738546251788,-139141.36263371,0.000178,15]
[351370645,1738546251901,-95167.0,0.000178,15]
[351370648,1738546252101,-146272.28947687,0.000178,15]
[351370649,1738546252113,-3729.83173198,0.000178,15]
[351370650,1738546252124,-3502.72181153,0.000178,15]
[351370651,1738546252310,-383.53448966,0.00016438,2]
[351370652,1738546252324,-127.04035719,0.00016438,2]
[351370653,1738546252337,-362.25208356,0.00016438,2]
[351370654,1738546252351,-142.96661091,0.00016438,2]
[351370655,1738546252361,-205971.56140588,0.000178,15]
[351370656,1738546252568,500.0,0.00014657,2]
[351370657,1738546252592,-510.04543644,0.00016438,2]
[351370658,1738546252602,-47121.45456357,0.000178,15]
[351370660,1738546252895,-500.0,0.00016027,2]
[351370661,1738546252906,-453.8,0.00016438,2]
[351370662,1738546252921,-47.44065193,0.00016438,2]
[351370663,1738546252933,-88865.30197201,0.000178,15]
[351370664,1738546252947,-21903.24,0.000178,15]
[351371010,1738546428632,217.09852,0.00013973,2]
[351371629,1738546777813,2235.0,0.00018,30]
[351372376,1738547203067,946.0,0.000204,120]
[351372659,1738547361077,200.0,0.00015,2]
[351372713,1738547392099,300.0,0.0001501,2]
[351372743,1738547405956,5548.3578747,0.00014199,2]
[351372747,1738547407370,215.646418,0.00013973,2]
[351372779,1738547426768,300.0,0.00015011,3]
[351372893,1738547432310,300.0,0.00015011,4]
[351372958,1738547434349,-167.73979609,0.00015236,2]
[351372959,1738547434361,-300.0,0.0001539,2]
[351372960,1738547434372,-413.89024991,0.00015392,2]
[351372961,1738547434386,-933.12684086,0.00015392,2]
[351372985,1738547436142,-3788.7228776,0.00015392,2]
[351372986,1738547436155,-1050.07865971,0.00015392,2]
[351372987,1738547436193,-4034.64183489,0.00015392,2]
[351372988,1738547436208,-1105.18818127,0.00015392,2]
[351372990,1738547436233,-612.9600958,0.00015392,2]
[351372992,1738547436593,-381.042,0.00015392,2]
[351372993,1738547436606,-1899.98,0.00015392,2]
[351372994,1738547436626,-10680.36925996,0.00015392,2]
[351372995,1738547436636,-352.61382,0.00015428,2]
[351372996,1738547436647,-3421.14822854,0.00016,2]
[351372997,1738547436657,-500.0,0.00016047,2]
[351372998,1738547436668,-500.0,0.000163,2]
[351372999,1738547436679,-166.29414146,0.00016338,2]
[351373000,1738547436690,-151.0,0.000164,2]
[351373001,1738547436700,-151.0,0.000164,2]
[351373002,1738547436710,-227.72913741,0.000164,2]
[351373003,1738547436720,-166.29414146,0.00016406,2]
[351373004,1738547436731,-300.35696553,0.00016428,2]
[351373005,1738547436740,-500.0,0.00016437,2]
[351373006,1738547436750,-511.26832083,0.00016437,2]
[351373007,1738547436759,-506.96275647,0.00016437,2]
[351373008,1738547436769,-518.56817316,0.00016437,2]
[351373009,1738547436780,-235.1698633,0.00016437,2]
[351373010,1738547436790,-170.65558884,0.00016437,2]
[351373011,1738547436802,-500.0,0.00016437,2]
[351373012,1738547436813,-413.79736411,0.00016437,2]
[351373013,1738547436823,-500.0,0.00016437,2]
[351373014,1738547436832,-500.0,0.00016437,2]
[351373015,1738547436842,-500.0,0.00016437,2]
[351373016,1738547436852,-476.66627948,0.00016437,2]
[351373017,1738547436862,-500.0,0.00016437,2]
[351373018,1738547436872,-500.0,0.00016437,2]
[351373019,1738547436883,-500.0,0.00016437,2]
[351373020,1738547436893,-422.39399364,0.00016437,2]
[351373021,1738547436902,-500.0,0.00016437,2]
[351373022,1738547436912,-508.83424407,0.00016437,2]
[351373023,1738547436922,-500.0,0.00016437,2]
[351373024,1738547436932,-500.0,0.00016437,2]
[351373025,1738547436942,-406.77903382,0.00016437,2]
[351373026,1738547436952,-362.36283433,0.00016437,2]
[351373028,1738547436962,-500.0,0.00016437,2]
[351373029,1738547436972,-500.0,0.00016437,2]
[351373030,1738547436982,-500.0,0.00016437,2]
[351373031,1738547436992,-500.81239853,0.00016438,2]
[351373032,1738547437003,-501.12322549,0.00016438,2]
[351373033,1738547437013,-501.94180148,0.00016438,2]
[351373034,1738547437023,-275.1951102,0.00016438,2]
[351373035,1738547437033,-502.1775994,0.00016438,2]
[351373036,1738547437045,-501.2032536,0.00016438,2]
[351373037,1738547437055,-501.44431371,0.00016438,2]
[351373038,1738547437176,-500.99768658,0.00016438,2]
[351373041,1738547437187,-395.74481691,0.00016438,2]
[351373042,1738547437198,-501.02734099,0.00016438,2]
[351373043,1738547437211,-500.39678848,0.00016438,2]
[351373044,1738547437231,-500.53859234,0.00016438,2]
[351373045,1738547437242,-586.29048906,0.00016438,2]
[351373047,1738547437252,-500.90064051,0.00016438,2]
[351373048,1738547437263,-500.76561947,0.00016438,2]
[351373049,1738547437275,-503.46185027,0.00016438,2]
[351373050,1738547437285,-500.93944614,0.00016438,2]
[351373051,1738547437298,-492.83905377,0.00016438,2]
[351373052,1738547437308,-501.00310161,0.00016438,2]
[351373053,1738547437318,-500.9670767,0.00016438,2]
[351373054,1738547437329,-500.21541734,0.00016438,2]
[351373055,1738547437339,-500.0,0.00016438,2]
[351373056,1738547437350,-501.41115147,0.00016438,2]
[351373057,1738547437360,-500.0,0.00016438,2]
[351373058,1738547437370,-500.0,0.00016438,2]
[351373059,1738547437380,-501.97549804,0.00016438,2]
[351373060,1738547437390,-501.89880338,0.00016438,2]
[351373061,1738547437401,-355.56923107,0.00016438,2]
[351373063,1738547437411,-502.62207543,0.00016438,2]
[351373064,1738547437424,-501.43447962,0.00016438,2]
[351373065,1738547437434,-502.26684702,0.00016438,2]
[351373066,1738547437444,-500.0,0.00016438,2]
[351373067,1738547437454,-503.05254197,0.00016438,2]
[351373068,1738547437464,-500.0,0.00016438,2]
[351373070,1738547437475,-501.39389069,0.00016438,2]
[351373072,1738547437486,-507.43725214,0.00016438,2]
[351373074,1738547437496,-501.44815681,0.00016438,2]
[351373076,1738547437506,-501.43338307,0.00016438,2]
[351373077,1738547437516,-501.809957,0.00016438,2]
[351373079,1738547437526,-507.22799264,0.00016438,2]
[351373080,1738547437536,-172.73054834,0.00016438,2]
[351373081,1738547437549,-454.5370634,0.00016438,2]
[351373082,1738547437559,-500.0,0.00016438,2]
[351373083,1738547437568,-645.27388734,0.00016438,2]
[351373084,1738547437578,-501.42438135,0.00016438,2]
[351373085,1738547437589,-500.0,0.00016438,2]
[351373086,1738547437600,-514.77306229,0.00016438,2]
[351373087,1738547437611,-255.34806689,0.00016438,2]
[351373088,1738547437621,-193.36191197,0.00016438,2]